fUSD/lending_fUSD_20240719
["ID","MTS","AMOUNT","RATE_DAILY","PERIOD"]
[332631834,1721381446537,-440.69060967,0.00026746,2]
[332631835,1721381446547,-195.73459741,0.00026799,2]
[332631836,1721381446556,-4119.69854711,0.00026799,2]
[332631837,1721381446568,-1812.44892593,0.00026799,2]
[332631838,1721381446578,-4508.05107407,0.000268,2]
[332631839,1721381446594,-6882.92088896,0.000268,2]
[332635434,1721382512427,2000.0,0.0002,10]
[332635435,1721382530994,1000.0,0.0002,10]
[332635445,1721382632438,-150.0,0.00015,2]
[332635446,1721382632447,-1278.86803225,0.00016399,2]
[332635447,1721382632456,-1278.86803225,0.00016474,2]
[332635448,1721382632467,-158.96592151,0.00016499,2]
[332635450,1721382632792,-1278.86803225,0.00016548,2]
[332635452,1721382632805,-986.0,0.00016647,2]
[332635454,1721382632815,-159.51806429,0.00016649,2]
[332635456,1721382632824,-200.0,0.00017,2]
[332635458,1721382632833,-573.0,0.000176,2]
[332635460,1721382632843,-150.0,0.00018329,2]
[332635462,1721382632854,-150.99,0.00018357,2]
[332635463,1721382632862,-499.99,0.00018357,2]
[332635465,1721382632873,-153.0,0.00018357,2]
[332635467,1721382632882,-153.0,0.00018357,2]
[332635469,1721382632891,-250.0,0.00019,2]
[332635472,1721382632901,-47361.37214328,0.0002,2]
[332635473,1721382632910,-227.43774807,0.00020109,2]
[332635475,1721382632919,-402.70159023,0.00020831,2]
[332635477,1721382632928,-10525.79135321,0.00020899,2]
[332635479,1721382632939,-1000.0,0.00020999,2]
[332635481,1721382632949,-300.0,0.00021,2]
[332635483,1721382632959,-430.63,0.00021009,2]
[332635485,1721382632968,-1000.0,0.00022284,2]
[332635487,1721382632977,-1000.0,0.00022293,2]
[332635489,1721382632987,-200.0,0.00022346,2]
[332635490,1721382632996,-350.0,0.00023,2]
[332635491,1721382633005,-322.37,0.00023164,2]
[332635492,1721382633015,-159.51806429,0.00023173,2]
[332635493,1721382633024,-2488.09,0.00023212,2]
[332635494,1721382633034,-250.0,0.00023228,2]
[332635495,1721382633043,-430.63,0.00023273,2]
[332635496,1721382633052,-23900.0,0.00023365,2]
[332635497,1721382633062,-9255.41024212,0.00024124,2]
[332635498,1721382633072,-173.63591591,0.00024242,2]
[332635499,1721382633082,-155.0,0.00024999,2]
[332635500,1721382633091,-155.0,0.00024999,2]
[332635501,1721382633103,-400.0,0.00025,2]
[332635502,1721382633112,-265.02858549,0.0002536,2]
[332635503,1721382633122,-430.63,0.00025537,2]
[332635504,1721382633131,-14162.18745299,0.00026,2]
[332635505,1721382633140,-300.0,0.00026631,2]
[332635506,1721382633149,-1263.62187388,0.00026646,2]
[332635507,1721382633159,-997.10655727,0.0002669,2]
[332635508,1721382633167,-8186.1587,0.000267,2]
[332635509,1721382633177,-155.33310564,0.000267,2]
[332635510,1721382633186,-171.59712412,0.000267,2]
[332635511,1721382633196,-323.68577508,0.000267,2]
[332635512,1721382633205,-90910.0,0.0002673,2]
[332635513,1721382633215,-351.22446072,0.0002679,4]
[332635514,1721382633224,-400.36,0.0002679,2]
[332635515,1721382633233,-400.36,0.0002679,2]
[332635516,1721382633242,-400.36,0.0002679,2]
[332635517,1721382633253,-400.36,0.0002679,2]
[332635518,1721382633262,-400.36,0.0002679,2]
[332635519,1721382633272,-195.7345974,0.00026799,2]
[332635520,1721382633281,-2966.07373652,0.00026799,2]
[332635521,1721382633290,-1272.13376484,0.00026799,10]
[332635522,1721382633300,-147965.20538883,0.000268,2]
[332635523,1721382633312,-603.38328281,0.000268,2]
[332635524,1721382633323,-6286.357445,0.000268,2]
[332635525,1721382633334,-2756.11977575,0.000268,2]
[332635526,1721382633351,-50395.9278722,0.000268,2]
[332635527,1721382633362,-12910.18676216,0.000268,2]
[332635528,1721382633374,-5790.97463524,0.000268,2]
[332635529,1721382633389,-278.60878409,0.000268,2]
[332635530,1721382633399,-1115.8023317,0.000268,2]
[332635531,1721382633411,-3499.02376926,0.000268,2]
[332635532,1721382633422,-289.3455407,0.000268,2]
[332635533,1721382633437,-9143.48869534,0.000268,2]
[332635534,1721382633452,-80037.25673849,0.000268,2]
[332635535,1721382633461,-596.13429,0.000268,2]
[332635536,1721382633473,-175.99845231,0.000269,2]
[332635537,1721382633482,-166.85942541,0.000269,2]
[332635538,1721382633492,-251.42026205,0.0002699,2]
[332635539,1721382633502,-219.2791421,0.00026997,2]
[332635540,1721382633513,-500.0,0.00026999,2]
[332635541,1721382633523,-500.0,0.00026999,2]
[332635542,1721382633532,-308.57166829,0.00026999,2]
[332635543,1721382633542,-500.0,0.00026999,2]
[332635544,1721382633552,-500.0,0.00026999,2]
[332635545,1721382633561,-500.0,0.00026999,2]
[332635546,1721382633570,-500.0,0.00026999,2]
[332635547,1721382633580,-640.92267933,0.00026999,2]
[332635548,1721382633589,-547.33004054,0.00026999,2]
[332635549,1721382633600,-500.0,0.00026999,2]
[332635550,1721382633609,-500.0,0.00026999,2]
[332635551,1721382633619,-500.0,0.00026999,2]
[332635552,1721382633630,-500.0,0.00026999,2]
[332635553,1721382633640,-500.0,0.00026999,2]
[332635554,1721382633649,-500.0,0.00026999,2]
[332635555,1721382633658,-500.0,0.00026999,2]
[332635556,1721382633667,-500.0,0.00026999,2]
[332635557,1721382633677,-500.0,0.00026999,2]
[332635558,1721382633687,-500.0,0.00026999,2]
[332635559,1721382633696,-500.0,0.00026999,2]
[332635560,1721382633705,-500.0,0.00026999,2]
[332635561,1721382633715,-324.09724518,0.00026999,2]
[332635562,1721382633724,-186.45180112,0.00026999,2]
[332635570,1721382638508,-1483.03686826,0.00026799,2]
[332635571,1721382638517,-313.54819888,0.00026999,2]
[332635572,1721382638527,-500.0,0.00026999,2]
[332635573,1721382638536,-500.0,0.00026999,2]
[332635574,1721382638547,-344.7142679,0.00026999,2]
[332635575,1721382638556,-500.0,0.00026999,2]
[332635576,1721382638566,-500.0,0.00026999,2]
[332635577,1721382638575,-500.0,0.00026999,2]
[332635578,1721382638585,-500.0,0.00026999,2]
[332635579,1721382638594,-500.0,0.00026999,2]
[332635580,1721382638607,-500.0,0.00026999,2]
[332635581,1721382638616,-478.14558028,0.00027,2]
[332635582,1721382638628,-43.85441972,0.00027,2]
[332635583,1721382638638,-1756.14558028,0.00027,7]
[332635584,1721382638649,-7752.86648432,0.00027,7]
[332635585,1721382638659,-4897.77204263,0.00027,2]
[332635586,1721382638670,-2109.83826179,0.00027,2]
[332635587,1721382638681,-14038.42116727,0.00027,2]
[332635588,1721382638693,-160621.21795198,0.00027,2]
[332635589,1721382638704,-527.3426415,0.00027,2]
[332635590,1721382638715,-314.7030121,0.00027,2]
[332635591,1721382638726,-9147.58767893,0.00027,2]
[332635592,1721382638738,-4026.77650109,0.00027,2]
[332635593,1721382638749,-657.76259654,0.00027,2]
[332635594,1721382638761,-384.2290936,0.00027,2]
[332635595,1721382638772,-2478.04411479,0.00027,2]
[332635596,1721382638783,-605.30007405,0.00027,2]
[332635597,1721382638794,-384.88181269,0.00027,2]
[332635598,1721382638851,-1728.17909024,0.00027,2]
[332635599,1721382638863,-1777.0,0.00027,2]
[332635600,1721382638874,-695.50208201,0.00027,2]
[332635601,1721382638885,-70128.82120271,0.00027,2]
[332635633,1721382640499,-1308.35300609,0.00027,2]
[332635634,1721382640512,-840.77658634,0.00027,2]
[332635635,1721382640555,-1663.5002,0.00027,2]
[332635636,1721382640703,-13359.8266714,0.00027,2]
[332635637,1721382640714,-844.59940527,0.00027,2]
[332635638,1721382640752,-934.28578238,0.00027,2]
[332635639,1721382640764,-2335.77121904,0.00027,2]
[332635640,1721382640776,-1007.52312096,0.00027,2]
[332635641,1721382640788,-1986.34492326,0.00027,2]
[332635642,1721382640801,-100848.67448201,0.00027,2]
[332635643,1721382640813,-578.06080476,0.00027,2]
[332635644,1721382640850,-2879.74230614,0.00027,2]
[332635645,1721382640861,-304.33735203,0.00027,2]
[332635646,1721382641206,-25988.15717172,0.00027,2]
[332635647,1721382643437,-274.49314456,0.00021747,2]
[332635651,1721382643765,-153.51513292,0.00021747,2]
[332635652,1721382643775,-536.48486708,0.00026998,2]
[332635653,1721382643788,-205.03356705,0.00026998,2]
[332635654,1721382643797,-16138.59207795,0.00027,2]
[332635655,1721382643809,-328.04999985,0.00027,2]
[332635656,1721382643821,-1785.68914033,0.00027,2]
[332635662,1721382646612,-250.0,0.00024242,2]
[332635663,1721382646622,-1068.17409326,0.00026459,2]
[332635664,1721382646632,-5255.55472444,0.00027,2]
[332635665,1721382646644,-1472.53722582,0.00027,2]
[332635666,1721382646746,-1643.19502073,0.00027,2]
[332635667,1721382646758,-5375.9621004,0.00027,2]
[332635668,1721382646770,-349.29000001,0.00027,2]
[332635669,1721382646781,-2046.6992832,0.00027,2]
[332635670,1721382646793,-1834.85362429,0.00027,2]
[332635671,1721382646808,-2321.56287337,0.00027,2]
[332635672,1721382646820,-1361.88681,0.00027,2]
[332635679,1721383166376,191.55858683,0.00015,15]
[332635705,1721383831550,-263.679541,0.00014824,2]
[332635706,1721383831560,-158.9659215,0.00014899,2]
[332635707,1721383831570,-150.0,0.00014999,2]
[332635708,1721383831579,-300.0,0.00014999,2]
[332635709,1721383831589,-4158.41830309,0.00015,2]
[332635710,1721383831599,-24675.27488665,0.00015,2]
[332635711,1721383831609,-150.0,0.00015,2]
[332635712,1721383831619,-14961.72403764,0.00015,2]
[332635713,1721383831628,-10525.79135321,0.00016033,2]
[332635714,1721383831638,-255.0,0.00016124,2]
[332635715,1721383831647,-9255.41024212,0.00016855,2]
[332635716,1721383831657,-200.0,0.00017,2]
[332635717,1721383831666,-150.0,0.00017339,2]
[332635718,1721383831676,-316.3859,0.000175,2]
[332635719,1721383831686,-499.99,0.000175,2]
[332635720,1721383831696,-4111.3,0.000175,2]
[332635721,1721383831706,-1161.71,0.00017534,2]
[332635722,1721383831716,-2049.0,0.000176,2]
[332635723,1721383831725,-1666.81,0.00017808,2]
[332635724,1721383831735,-9999.99,0.00017808,2]
[332635725,1721383831745,-250.0,0.00019,2]
[332635726,1721383831754,-205.50428581,0.00019177,2]
[332635727,1721383831764,-492.62763125,0.00019319,2]
[332635728,1721383831773,-227.43774807,0.00019319,2]
[332635729,1721383831782,-155.0,0.00019319,2]
[332635730,1721383831792,-265.02858549,0.00019319,2]
[332635731,1721383831801,-155.0,0.00019319,2]
[332635732,1721383831811,-155.0,0.00019387,2]
[332635733,1721383831825,-150.99,0.00019451,2]
[332635734,1721383831836,-150.99,0.00019451,2]
[332635735,1721383831846,-252.95,0.00019451,2]
[332635736,1721383831855,-4285.64,0.00020972,2]
[332635737,1721383831865,-300.0,0.00021,2]
[332635738,1721383831875,-6748.75,0.00021003,2]
[332635739,1721383831884,-500.0,0.00021076,2]
[332635740,1721383831893,-23900.0,0.00021132,2]
[332635741,1721383831905,-500.0,0.00021368,2]
[332635742,1721383831915,-250.0,0.00021482,2]
[332635743,1721383831924,-2706.81,0.00021525,2]
[332635744,1721383831933,-250.0,0.00021544,2]
[332635745,1721383831942,-150.0,0.00021547,2]
[332635746,1721383831952,-500.0,0.00021581,2]
[332635747,1721383831962,-154.4,0.00021644,2]
[332635748,1721383831971,-157.07,0.00021644,2]
[332635749,1721383831980,-200.0,0.00021672,2]
[332635750,1721383831991,-394.7,0.00021803,2]
[332635751,1721383832000,-191.95,0.00021918,2]
[332635752,1721383832009,-150.0,0.00022488,4]
[332635753,1721383832020,-350.0,0.00023,2]
[332635754,1721383832029,-1159.13,0.00023717,2]
[332635755,1721383832038,-3635.79,0.0002372,2]
[332635756,1721383832047,-583.25,0.00023783,2]
[332635757,1721383832057,-394.7,0.00024067,2]
[332635758,1721383832066,-10000.0,0.00024104,2]
[332635759,1721383832076,-1146.0,0.0002475,2]
[332635760,1721383832088,-504.62,0.00024807,2]
[332635761,1721383832097,-1384.75598674,0.000249,2]
[332635762,1721383832106,-2516.19983421,0.000249,2]
[332635763,1721383832116,-1015.28643494,0.000249,2]
[332635764,1721383832126,-5088.0266156,0.000249,2]
[332635765,1721383832136,-323.09966285,0.000249,2]
[332635766,1721383832145,-174.07500816,0.000249,2]
[332635767,1721383832155,-150.0,0.00024986,4]
[332635768,1721383832165,-1608.04239883,0.00024989,2]
[332635769,1721383832175,-76834.3145979,0.0002499,4]
[332635770,1721383832186,-167.61350803,0.0002499,2]
[332635771,1721383832197,-167.61350803,0.0002499,2]
[332635772,1721383832207,-167.61350803,0.0002499,2]
[332635773,1721383832217,-463.40374016,0.00024999,2]
[332635774,1721383832226,-500.0,0.00024999,2]
[332635775,1721383832236,-171.92556006,0.00024999,2]
[332635776,1721383832245,-482.74602977,0.00024999,2]
[332635777,1721383832255,-424.89969391,0.00024999,2]
[332635778,1721383832265,-150.0,0.00024999,2]
[332635779,1721383832274,-39860.08179019,0.00025,5]
[332635780,1721383832287,-7374.7,0.00025,5]
[332635783,1721383837617,-1754.23313673,0.00024997,2]
[332635785,1721383837627,-11264.4972609,0.00025,5]
[332635788,1721383837677,-2900.0,0.00025,5]
[332635789,1721383837738,-918.803945,0.00025,5]
[332635790,1721383837798,-13807.46081107,0.00025,5]
[332635791,1721383837875,-122052.53454313,0.00025,5]
[332635792,1721383837938,-2396.30781176,0.00025,5]
[332635836,1721383839730,-365.29159335,0.00025,5]
[332635838,1721383839742,-322.80000013,0.00025,5]
[332635843,1721383839787,-639.91199075,0.00025,5]
[332635863,1721383839970,-989.22878096,0.00025,5]
[332635865,1721383839982,-952.47687904,0.00025,5]
[332635947,1721383842739,-432.40332482,0.00025,5]
[332635948,1721383842782,-155.0,0.00019319,2]
[332635949,1721383842792,-2923.39999999,0.00025,5]
[332635950,1721383842946,-1731.83416682,0.00025,5]
[332635951,1721383842958,-69971.3479012,0.00025,5]
[332635952,1721383842969,-378.79593005,0.00025,5]
[332635965,1721383846214,-104349.33671952,0.00025,5]
[332635967,1721383846225,-3137.56541814,0.00025,5]
[332635969,1721383846239,-7088.42811936,0.00025,5]
[332635972,1721383846253,-1436.61656224,0.00025,5]
[332635974,1721383846267,-341.58632942,0.00025,5]
[332635976,1721383846279,-5755.3,0.00025,5]
[332635980,1721384728654,1297.16065318,0.000118,2]
[332635997,1721385031820,-597.34227907,0.000135,2]
[332635998,1721385031832,-98.99155261,0.000135,2]
[332635999,1721385031841,-400.0,0.000137,5]
[332636000,1721385031850,-190.5661328,0.000138,5]
[332636001,1721385031861,-609.4338672,0.000138,5]
[332636002,1721385031871,-1200.0,0.000139,5]
[332636003,1721385031881,-150.0,0.00013999,2]
[332636004,1721385031890,-51706.25963975,0.00014,2]
[332636005,1721385031910,-3800.0,0.00014,2]
[332636006,1721385031921,-13057.65166343,0.00014,2]
[332636007,1721385031934,-12006.41709159,0.00014,2]
[332636008,1721385032555,-40363.509443,0.00014,2]
[332636009,1721385032567,-13501.65778264,0.00014,2]
[332636010,1721385032705,-1032.6424,0.00014,2]
[332636011,1721385032725,-325.90126456,0.00014,2]
[332636043,1721385037870,-392453.71226604,0.00014,2]
[332636044,1721385038099,-1270.89616337,0.00014,2]
[332636045,1721385038111,-40353.26705495,0.00014,2]
[332636046,1721385038123,-319.504,0.00014,2]
[332636114,1721385039990,-825.08722786,0.00014,2]
[332636115,1721385040003,-510.38,0.00014,2]
[332636174,1721386232139,-167.70597801,0.00013461,2]
[332636175,1721386232150,-115.68435237,0.0001348,2]
[332636176,1721386232161,-933.49206678,0.0001348,2]
[332636177,1721386232173,-1850.72560984,0.0001348,2]
[332636178,1721386232184,-3150.73140601,0.0001348,2]
[332636179,1721386232194,-658.37742364,0.00013561,2]
[332636180,1721386232203,-300.0,0.000138,5]
[332636181,1721386232213,-296.79126627,0.0001385,2]
[332636182,1721386232222,-150.0,0.00013863,2]
[332636183,1721386232231,-220.81,0.0001389,2]
[332636184,1721386232242,-2026.21076932,0.00013898,2]
[332636185,1721386232258,-5112.12696747,0.00013898,2]
[332636186,1721386232271,-355.41834579,0.00013898,2]
[332636187,1721386232282,-1318.15631289,0.00013898,2]
[332636193,1721386238038,-246.0,0.00013899,2]
[332636194,1721386238047,-179.70103361,0.000139,2]
[332636195,1721386238056,-1026.08524154,0.000139,2]
[332636196,1721386238065,-700.0,0.000139,5]
[332636197,1721386238075,-322.73801525,0.000139,2]
[332636198,1721386238084,-1138.57807212,0.00013989,2]
[332636199,1721386238093,-320.29617739,0.00013999,2]
[332636200,1721386238231,-679.70382261,0.00013999,2]
[332636201,1721386238241,-150.0,0.00013999,2]
[332636202,1721386238251,-548636.54055404,0.00014,2]
[332636203,1721386238262,-1337.30407824,0.00014,2]
[332636204,1721386238274,-94393.0224855,0.00014,2]
[332636205,1721386238434,-1003.45043313,0.00014,2]
[332636207,1721386238446,-3700.0,0.00014,2]
[332636215,1721386240038,-306.81800345,0.00014,2]
[332636217,1721386240051,-1145.49596646,0.00014,2]
[332636218,1721386240110,-1380.36615064,0.00014,2]
[332636219,1721386240122,-1733.90218234,0.00014,2]
[332636220,1721386240294,-24527.03046892,0.00014,2]
[332636221,1721386240307,-17150.07971342,0.00014,2]
[332636222,1721386240318,-6432.84,0.00014,2]
[332636253,1721386243823,-713.49,0.0001399,3]
[332636254,1721386243833,-4278.02483063,0.00014,2]
[332636258,1721386243847,-196191.29527596,0.00014,2]
[332636300,1721386244180,-5009.93170764,0.00014,2]
[332636302,1721386244192,-58488.80210446,0.00014,2]
[332636303,1721386246064,-25870.6843161,0.00014,2]
[332636304,1721386246129,-592.20419882,0.00014,2]
[332636305,1721386246140,-530.6,0.00014,2]
[332636306,1721386246191,-1321.4022825,0.00014,2]
[332636307,1721386246381,-91136.77381468,0.00014,2]
[332636309,1721386246393,-1437.0690135,0.00014,2]
[332636374,1721386792209,-1534.78887691,0.0001362,2]
[332636375,1721386792232,-10525.79135321,0.00013699,2]
[332636376,1721386792255,-9035.58437457,0.0001372,2]
[332636377,1721386802596,-1516.3693,0.0001376,2]
[332636378,1721386802618,-9255.41024212,0.00013799,2]
[332636379,1721386802639,-9228.22045788,0.00013879,2]
[332636380,1721386803140,-10421.17872754,0.00013879,2]
[332636381,1721386803161,-4000.69307287,0.00013889,2]
[332636382,1721386803183,-5578.12819959,0.00013899,2]
[332636383,1721386804672,-6801.8704236,0.00013899,2]
[332636384,1721386804696,-150.0,0.00013899,2]
[332636385,1721386804722,-1956.0,0.000139,2]
[332636386,1721386804744,-1570.76783255,0.000139,2]
[332636387,1721386804765,-1500.0,0.00013989,2]
[332636388,1721386804796,-5609.58158913,0.00013999,2]
[332636389,1721386804825,-2411.78015472,0.00014,2]
[332636390,1721386806207,-387.11686926,0.00013815,2]
[332636391,1721386806237,-19612.88313074,0.00014,2]
[332636392,1721386806615,-20000.0,0.00014,2]
[332636393,1721386807019,-20000.0,0.00014,2]
[332636394,1721386807427,-6245.86925558,0.00014,2]
[332636395,1721386807449,-3932.064,0.00014,2]
[332636396,1721386807475,-9822.06674442,0.00014,2]
[332636397,1721386807865,-20000.0,0.00014,2]
[332636398,1721386809192,-20000.0,0.00014,2]
[332636400,1721387396525,-167.47,0.00012817,2]
[332636401,1721387396547,-290.05974808,0.00013776,2]
[332636402,1721387396569,-387.11686926,0.00013791,2]
[332636403,1721387396591,-5394.61164962,0.00013899,2]
[332636404,1721387396614,-24755.04083467,0.00013899,2]
[332636405,1721387396636,-586.27,0.00013964,2]
[332636406,1721387396658,-150.0,0.00013978,2]
[332636407,1721387396681,-5394.61164962,0.00013979,2]
[332636408,1721387396704,-28077.88417786,0.00013989,2]
[332636409,1721387396725,-15457.78265303,0.00013996,2]
[332636410,1721387396747,-80160.37844609,0.00014,2]
[332636411,1721387396770,-1115.44347773,0.00014,2]
[332636412,1721387396792,-158.71970607,0.00014,2]
[332636413,1721387396814,-796.97341307,0.00014,2]
[332636414,1721387396836,-399.53002714,0.00014,2]
[332636415,1721387396857,-199.91889867,0.00014,2]
[332636416,1721387396878,-155.0,0.00014,2]
[332636417,1721387396900,-300.16453991,0.00014,2]
[332636418,1721387396922,-2996.77857,0.00014,2]
[332636419,1721387402980,150.0,0.00014,2]
[332636420,1721387403176,150.0,0.00014,2]
[332636421,1721387403368,152.1447448,0.00014,2]
[332636422,1721387410683,-499.99,0.00014261,2]
[332636423,1721387410705,-150.99,0.00014261,2]
[332636424,1721387410728,-3493.42839043,0.00014303,2]
[332636425,1721387410753,-214.43969087,0.00014378,2]
[332636426,1721387410775,-12316.52606489,0.0001443,2]
[332636427,1721387410797,-1072.8576284,0.0001443,2]
[332636428,1721387410819,-1072.8576284,0.0001443,2]
[332636429,1721387410841,-2382.38683236,0.00014519,2]
[332636430,1721387410862,-1072.02826588,0.00014579,2]
[332636431,1721387410884,-300.0,0.00014666,2]
[332636432,1721387410907,-9255.41024212,0.00014667,2]
[332636433,1721387410929,-169.56,0.00014789,2]
[332636434,1721387410951,-1254.99718635,0.00014789,2]
[332636435,1721387410977,-4469.17282066,0.00014789,2]
[332636436,1721387411001,-4469.17282066,0.00014789,2]
[332636437,1721387411022,-5609.58158913,0.00014789,2]
[332636438,1721387411048,-492.74605523,0.00014896,2]
[332636439,1721387411070,-599.58301876,0.00014899,2]
[332636440,1721387411091,-250.0,0.00014942,2]
[332636441,1721387411112,-165.12,0.00014979,2]
[332636442,1721387411133,-369.54465039,0.00014988,2]
[332636443,1721387411156,-155.0,0.00014999,2]
[332636444,1721387411184,-259.71036966,0.00014999,2]
[332636445,1721387411216,-155.0,0.00014999,2]
[332636446,1721387411246,-8765.68,0.00015,2]
[332636447,1721387411270,-150.0,0.00015,2]
[332636448,1721387417845,-1413.69104934,0.00015019,2]
[332636449,1721387417866,-255.0,0.00015096,2]
[332636450,1721387417887,-1265.58472584,0.00015369,2]
[332636451,1721387417911,-198.81,0.00015787,2]
[332636452,1721387417933,-167.97,0.00015831,2]
[332636453,1721387417956,-1500.0,0.00015884,5]
[332636454,1721387417979,-1286.0501,0.00015899,2]
[332636455,1721387418005,-280.57333383,0.00015899,2]
[332636456,1721387418028,-250.0,0.00015999,2]
[332636457,1721387425768,-420.0,0.00016056,2]
[332636458,1721387425790,-169.18,0.00016125,2]
[332636459,1721387425813,-200.0,0.00016202,2]
[332636460,1721387425836,-586.27,0.00016228,2]
[332636461,1721387425857,-525.2500057,0.00016232,2]
[332636462,1721387425878,-200.0,0.00016252,2]
[332636463,1721387425899,-268.36,0.00016298,2]
[332636464,1721387425921,-255.0,0.00016299,2]
[332636465,1721387425942,-500.0,0.00016303,3]
[332636466,1721387425969,-958.16486127,0.00016358,2]
[332636467,1721387425991,-17806.0,0.00016358,2]
[332636468,1721387426015,-280.03,0.0001637,2]
[332636469,1721387426037,-10408.94,0.00016375,2]
[332636470,1721387426060,-558.88,0.00016393,2]
[332636471,1721387426081,-374.70621204,0.00016425,2]
[332636472,1721387426103,-520.06850352,0.00016425,2]
[332636473,1721387426124,-356.83039399,0.00016425,2]
[332636474,1721387426146,-367.23313419,0.00016425,2]
[332636475,1721387426168,-270.109062,0.00016425,2]
[332636476,1721387426190,-155.77985922,0.00016425,2]
[332636477,1721387426212,-155.0,0.00016425,2]
[332636478,1721387426234,-364.91913643,0.00016425,2]
[332636479,1721387426257,-241.61284913,0.00016425,2]
[332636480,1721387426279,-220.13226758,0.00016425,2]
[332636481,1721387426300,-1288.85358658,0.00016425,2]
[332636482,1721387426321,-1500.0,0.00016425,2]
[332636483,1721387426342,-231.2538594,0.00016425,2]
[332636484,1721387426364,-263.88862881,0.00016425,2]
[332636485,1721387426386,-194.3884375,0.00016425,2]
[332636486,1721387426407,-155.0,0.00016441,2]
[332636487,1721387426428,-155.46854314,0.00016441,2]
[332636488,1721387426449,-218.30559898,0.00016441,2]
[332636489,1721387426470,-155.17724308,0.00016441,2]
[332636490,1721387426491,-303.17242072,0.00016441,2]
[332636491,1721387426513,-246.77971328,0.00016441,2]
[332636492,1721387426534,-439.21770875,0.00016441,2]
[332636493,1721387426555,-155.23297036,0.00016441,2]
[332636494,1721387426576,-155.0,0.0001647,2]
[332636495,1721387426598,-1000.0,0.00016488,2]
[332636496,1721387426619,-250.0,0.00016527,2]
[332636497,1721387426641,-6086.68230917,0.00016598,2]
[332636498,1721387426662,-165.3,0.00016656,2]
[332636499,1721387426683,-890.50362859,0.00016799,2]
[332636500,1721387426707,-375.64,0.0001687,2]
[332636501,1721387426731,-1805.55378726,0.00016881,2]
[332636502,1721387426756,-255.40525301,0.00016897,2]
[332636503,1721387426778,-300.0,0.00016948,2]
[332636504,1721387426799,-545.62075935,0.00016952,2]
[332636505,1721387426821,-7595.42725403,0.00016969,2]
[332636506,1721387426842,-2498.02656989,0.00017,2]
[332636507,1721387426864,-200.0,0.00017,2]
[332636508,1721387426901,242.77519857,0.0001647,2]
[332636509,1721387426941,528.03546027,0.00016441,2]
[332636510,1721387427454,155.0,0.00016358,2]
[332636511,1721387427628,200.96228511,0.00016948,2]
[332636512,1721387427674,155.23105206,0.00016425,2]
[332636513,1721387427739,347.08229106,0.00016358,2]
[332636514,1721387428265,515.63745664,0.00016358,2]
[332636515,1721387429497,155.0,0.00016425,2]
[332636536,1721387433239,-1413.69104925,0.00017068,2]
[332636537,1721387433250,-173.49,0.00017196,2]
[332636538,1721387433260,-300.0,0.00017259,2]
[332636539,1721387433270,-168.5,0.00017406,2]
[332636540,1721387433280,-168.5,0.00017411,2]
[332636541,1721387433290,-168.5,0.00017415,2]
[332636542,1721387433299,-168.5,0.0001742,2]
[332636543,1721387433309,-168.5,0.00017425,2]
[332636544,1721387433319,-168.5,0.00017429,2]
[332636545,1721387433328,-168.5,0.00017434,2]
[332636546,1721387433337,-168.5,0.00017438,2]
[332636547,1721387433347,-168.5,0.00017443,2]
[332636548,1721387433357,-168.5,0.00017447,2]
[332636549,1721387433367,-168.5,0.00017452,2]
[332636550,1721387433376,-168.5,0.00017457,2]
[332636551,1721387433386,-265.02858549,0.00017458,2]
[332636552,1721387433395,-155.0,0.00017458,2]
[332636553,1721387433405,-155.0,0.00017458,2]
[332636554,1721387433414,-155.0,0.00017458,2]
[332636555,1721387433424,-168.5,0.00017461,2]